[Event "ETCC Women 2013"]
[Site "Warsaw"]
[Date "2013.11.11"]
[Round "4"]
[White "Exler, Veronika"]
[Black "Videnova, Iva"]
[Result "0-1"]
[ECO "A88"]
[WhiteElo "2147"]
[BlackElo "2272"]
[PlyCount "56"]
[EventDate "2013.??.??"]
[EventCountry "POL"]
[WhiteTeam "Österreich"]
[BlackTeam "Bulgarien"]
[WhiteTeamCountry "AUT"]
[BlackTeamCountry "BUL"]
[TimeControl "40/5400+30:1800+30"]

1. d4 {[%emt 0:00:00]} f5 {[%emt 0:00:00]} 2. c4 {[%emt 0:00:00]} Nf6 {[%emt 0:
00:00]} 3. Nf3 {[%emt 0:00:22]} d6 {[%emt 0:00:00]} 4. g3 {[%emt 0:00:16]} g6 {
[%emt 0:00:01]} 5. Bg2 {[%emt 0:00:05]} Bg7 {[%emt 0:00:06]} 6. O-O {[%emt 0:
00:04]} O-O {[%emt 0:00:09]} 7. Nc3 {[%emt 0:00:11]} c6 {[%emt 0:00:06]} 8. d5
{[%emt 0:07:02]} e5 {[%emt 0:00:23]} 9. dxe6 {[%emt 0:00:15]} Bxe6 {[%emt 0:00:
08]} 10. b3 {[%emt 0:00:51]} Ne4 {[%emt 0:00:40]} 11. Nxe4 {[%emt 0:00:30]}
fxe4 {[%emt 0:00:08]} 12. Nd4 {[%emt 0:00:10]} Bf7 {[%emt 0:03:05]} 13. Rb1 {
[%emt 0:13:11]} Qe7 {[%emt 0:00:12]} 14. Be3 {[%emt 0:13:43]} a5 {[%emt 0:10:
03]} 15. Qc2 {[%emt 0:03:54]} d5 {[%emt 0:08:35]} 16. cxd5 {[%emt 0:04:54]}
Bxd5 {[%emt 0:00:18]} 17. Rfd1 {[%emt 0:00:09]} Na6 {[%emt 0:11:37]} 18. Qc1 {
[%emt 0:12:22]} Qf7 {[%emt 0:11:14]} 19. Qd2 {[%emt 0:09:03]} a4 {[%emt 0:05:
45]} 20. bxa4 {[%emt 0:03:54]} Rfd8 {[%emt 0:14:55]} 21. Qc2 {[%emt 0:04:23]}
Re8 {[%emt 0:03:40]} 22. a3 {[%emt 0:02:22]} Bf8 {[%emt 0:01:11]} 23. Qb2 {
[%emt 0:06:10]} Nc5 {[%emt 0:00:38]} 24. Nc2 {[%emt 0:07:27]} Nxa4 {[%emt 0:00:
58]} 25. Qa1 {[%emt 0:00:56]} c5 {[%emt 0:04:50]} 26. Bc1 {[%emt 0:09:03]} Bg7
{[%emt 0:07:05]} 27. Rb2 {[%emt 0:00:02]} Bb3 {[%emt 0:02:39]} 28. Qb1 {[%emt
0:00:37]} Nc3 {[%emt 0:01:55]} 0-1

[Event "ETCC Women 2013"]
[Site "Warsaw"]
[Date "2013.11.11"]
[Round "4"]
[White "Foisor, Cristina-Adela"]
[Black "Maisuradze, Nino"]
[Result "1/2-1/2"]
[ECO "D78"]
[WhiteElo "2347"]
[BlackElo "2302"]
[PlyCount "101"]
[EventDate "2013.??.??"]
[EventCountry "POL"]
[WhiteTeam "Rumänien"]
[BlackTeam "Frankreich"]
[WhiteTeamCountry "ROU"]
[BlackTeamCountry "FRA"]
[TimeControl "40/5400+30:1800+30"]

1. Nf3 {[%emt 0:00:00]} d5 {[%emt 0:00:00]} 2. d4 {[%emt 0:00:11]} Nf6 {[%emt
0:00:10]} 3. g3 {[%emt 0:00:05]} g6 {[%emt 0:00:34]} 4. Bg2 {[%emt 0:00:06]}
Bg7 {[%emt 0:00:02]} 5. O-O {[%emt 0:00:34]} O-O {[%emt 0:00:34]} 6. c4 {[%emt
0:03:54]} c6 {[%emt 0:00:35]} 7. Qb3 {[%emt 0:04:20]} Nbd7 {[%emt 0:11:43]} 8.
cxd5 {[%emt 0:00:43]} cxd5 {[%emt 0:00:22]} 9. Nc3 {[%emt 0:00:27]} e6 {[%emt
0:04:38]} 10. Bf4 {[%emt 0:01:02]} Nb6 {[%emt 0:07:13]} 11. Nb5 {[%emt 0:06:01]
} Ne8 {[%emt 0:02:45]} 12. Rfc1 {[%emt 0:05:27]} Nc4 {[%emt 0:00:45]} 13. e4 {
[%emt 0:09:54]} a6 {[%emt 0:17:22]} 14. Nc3 {[%emt 0:00:58]} Na5 {[%emt 0:00:
54]} 15. Qd1 {[%emt 0:00:19]} dxe4 {[%emt 0:01:32]} 16. Nxe4 {[%emt 0:00:24]}
Nc6 {[%emt 0:00:22]} 17. Rc4 {[%emt 0:11:57]} f5 {[%emt 0:03:34]} 18. Nc5 {
[%emt 0:05:00]} Nd6 {[%emt 0:00:42]} 19. Rc2 {[%emt 0:02:39]} Nb5 {[%emt 0:02:
16]} 20. Rd2 {[%emt 0:03:18]} Qe7 {[%emt 0:13:13]} 21. Rc1 {[%emt 0:03:20]} Rd8
{[%emt 0:13:27]} 22. d5 {[%emt 0:05:55]} exd5 {[%emt 0:00:16]} 23. Rxd5 {[%emt
0:03:56]} h6 {[%emt 0:08:14]} 24. a4 {[%emt 0:09:26]} Be6 {[%emt 0:05:43]} 25.
Rxd8+ {[%emt 0:09:18]} Rxd8 26. Qe1 {[%emt 0:00:18]} Nbd4 {[%emt 0:00:45]} 27.
Nxd4 {[%emt 0:00:20]} Nxd4 {[%emt 0:00:07]} 28. Nxb7 {[%emt 0:00:49]} Re8 {
[%emt 0:00:40]} 29. Rc7 {[%emt 0:02:39]} Qf6 {[%emt 0:01:47]} 30. Nd6 {[%emt 0:
03:02]} Rd8 {[%emt 0:00:28]} 31. Nc4 {[%emt 0:01:14]} Bxc4 {[%emt 0:03:16]} 32.
Rxc4 {[%emt 0:00:05]} Qf7 {[%emt 0:00:54]} 33. Rc7 {[%emt 0:01:06]} Rd7 {[%emt
0:00:40]} 34. Rc8+ {[%emt 0:01:35]} Kh7 {[%emt 0:00:02]} 35. h4 {[%emt 0:00:07]
} Re7 {[%emt 0:00:22]} 36. Qb4 {[%emt 0:01:31]} Ne2+ {[%emt 0:00:13]} 37. Kh2 {
[%emt 0:00:04]} Nxf4 {[%emt 0:00:08]} 38. Qxf4 {[%emt 0:00:25]} Bxb2 {[%emt 0:
00:24]} 39. Rc6 {[%emt 0:03:57]} Be5 {[%emt 0:00:06]} 40. Qf3 {[%emt 0:00:00]}
a5 {[%emt 0:00:00]} 41. Qd3 {[%emt 0:03:03]} Rd7 {[%emt 0:05:14]} 42. Qb5 {
[%emt 0:04:08]} Qe7 {[%emt 0:05:36]} 43. Rc4 {[%emt 0:03:09]} Rc7 {[%emt 0:09:
29]} 44. Rxc7 {[%emt 0:04:51]} Bxc7 {[%emt 0:01:26]} 45. h5 {[%emt 0:00:49]} f4
{[%emt 0:01:14]} 46. Qd3 {[%emt 0:09:59]} fxg3+ {[%emt 0:00:16]} 47. fxg3 {
[%emt 0:00:05]} Qd6 {[%emt 0:05:50]} 48. Bd5 {[%emt 0:01:50]} Kg7 {[%emt 0:00:
24]} 49. Qf3 {[%emt 0:02:35]} Qf6 {[%emt 0:01:06]} 50. Qg4 {[%emt 0:00:20]} Qf5
{[%emt 0:00:40]} 51. Qxg6+ {[%emt 0:02:52]} 1/2-1/2

[Event "ETCC Women 2013"]
[Site "Warsaw"]
[Date "2013.11.11"]
[Round "4"]
[White "Goossens, Hanne"]
[Black "Ozturk, Kubra"]
[Result "0-1"]
[ECO "C55"]
[WhiteElo "2069"]
[BlackElo "2281"]
[PlyCount "60"]
[EventDate "2013.??.??"]
[EventCountry "POL"]
[WhiteTeam "Belgien"]
[BlackTeam "Türkei"]
[WhiteTeamCountry "BEL"]
[BlackTeamCountry "TUR"]
[TimeControl "40/5400+30:1800+30"]

1. e4 {[%emt 0:00:00]} e5 {[%emt 0:00:00]} 2. Nf3 {[%emt 0:00:00]} Nc6 {[%emt
0:00:00]} 3. Bc4 {[%emt 0:00:00]} Nf6 {[%emt 0:00:00]} 4. d3 {[%emt 0:00:00]}
Be7 {[%emt 0:00:00]} 5. c3 {[%emt 0:00:39]} O-O {[%emt 0:00:00]} 6. O-O {[%emt
0:00:35]} d5 {[%emt 0:01:37]} 7. exd5 {[%emt 0:01:15]} Nxd5 {[%emt 0:00:04]} 8.
Re1 {[%emt 0:01:11]} Bg4 {[%emt 0:02:23]} 9. Nbd2 {[%emt 0:03:08]} Nb6 {[%emt
0:02:32]} 10. Bb5 {[%emt 0:02:15]} f6 {[%emt 0:02:34]} 11. Qb3+ {[%emt 0:03:49]
} Kh8 {[%emt 0:00:32]} 12. Bxc6 {[%emt 0:01:15]} bxc6 {[%emt 0:02:19]} 13. d4 {
[%emt 0:04:18]} Bd6 {[%emt 0:05:39]} 14. h3 {[%emt 0:16:26]} Bxf3 {[%emt 0:24:
57]} 15. Nxf3 {[%emt 0:01:54]} Nd7 {[%emt 0:05:16]} 16. dxe5 {[%emt 0:13:54]}
Nxe5 {[%emt 0:04:02]} 17. Nxe5 {[%emt 0:01:51]} fxe5 {[%emt 0:00:36]} 18. Qc4 {
[%emt 0:01:16]} Qd7 {[%emt 0:01:29]} 19. Be3 {[%emt 0:03:03]} a5 {[%emt 0:01:
26]} 20. Rad1 {[%emt 0:03:08]} Rf6 {[%emt 0:03:39]} 21. Rd2 {[%emt 0:05:43]}
Raf8 {[%emt 0:03:46]} 22. Qa4 {[%emt 0:05:52]} Rg6 {[%emt 0:01:18]} 23. Kh1 {
[%emt 0:01:06]} h6 {[%emt 0:05:34]} 24. Qxa5 {[%emt 0:04:18]} Rf3 {[%emt 0:02:
34]} 25. Kh2 {[%emt 0:12:23]} e4+ {[%emt 0:07:26]} 26. Rxd6 {[%emt 0:01:28]}
Qxd6+ {[%emt 0:00:35]} 27. Kh1 {[%emt 0:00:23]} Qf6 {[%emt 0:06:21]} 28. Qxc7 {
[%emt 0:02:27]} Rxh3+ {[%emt 0:00:52]} 29. Kg1 {[%emt 0:01:05]} Rxg2+ {[%emt 0:
00:11]} 30. Kf1 {[%emt 0:02:12]} Rxe3 {[%emt 0:03:02]} 0-1

[Event "ETCC Women 2013"]
[Site "Warsaw"]
[Date "2013.11.11"]
[Round "4"]
[White "Goryachkina, Aleksandra"]
[Black "Wozniak, Mariola"]
[Result "1-0"]
[ECO "D27"]
[WhiteElo "2438"]
[BlackElo "2069"]
[PlyCount "89"]
[EventDate "2013.??.??"]
[EventCountry "POL"]
[WhiteTeam "Russland"]
[BlackTeam "Polen"]
[WhiteTeamCountry "RUS"]
[BlackTeamCountry "POL"]
[TimeControl "40/5400+30:1800+30"]

1. d4 {[%emt 0:00:00]} d5 {[%emt 0:00:00]} 2. c4 {[%emt 0:00:00]} dxc4 {[%emt
0:00:00]} 3. Nf3 {[%emt 0:00:00]} Nf6 {[%emt 0:00:00]} 4. e3 {[%emt 0:00:00]}
e6 {[%emt 0:00:00]} 5. Bxc4 {[%emt 0:00:00]} c5 {[%emt 0:00:26]} 6. O-O {[%emt
0:03:21]} a6 {[%emt 0:00:07]} 7. dxc5 {[%emt 0:00:41]} Bxc5 {[%emt 0:00:09]} 8.
Qxd8+ {[%emt 0:01:19]} Kxd8 {[%emt 0:00:06]} 9. Rd1+ {[%emt 0:01:03]} Ke7 {
[%emt 0:00:51]} 10. Be2 {[%emt 0:02:17]} b6 {[%emt 0:07:42]} 11. Nbd2 {[%emt 0:
03:33]} Bb7 {[%emt 0:10:58]} 12. Ne5 {[%emt 0:03:06]} Rd8 {[%emt 0:23:02]} 13.
Nd3 {[%emt 0:13:22]} Bd6 {[%emt 0:01:47]} 14. Nc4 {[%emt 0:07:17]} Bc7 {[%emt
0:01:16]} 15. b3 {[%emt 0:02:25]} b5 {[%emt 0:13:53]} 16. Nce5 {[%emt 0:14:04]}
Ne4 {[%emt 0:05:22]} 17. Ba3+ {[%emt 0:06:02]} Bd6 {[%emt 0:05:03]} 18. Bxd6+ {
[%emt 0:02:52]} Rxd6 {[%emt 0:02:03]} 19. Rac1 {[%emt 0:05:12]} Nc6 {[%emt 0:
03:02]} 20. f3 {[%emt 0:02:22]} Nxe5 {[%emt 0:03:45]} 21. Nxe5 {[%emt 0:00:56]}
Rxd1+ {[%emt 0:00:51]} 22. Bxd1 {[%emt 0:00:32]} Nd6 {[%emt 0:00:55]} 23. Rc7+
{[%emt 0:01:07]} Ke8 {[%emt 0:00:40]} 24. Nxf7 {[%emt 0:02:32]} Nxf7 {[%emt 0:
00:51]} 25. Rxb7 {[%emt 0:00:02]} Rc8 {[%emt 0:01:02]} 26. Kf2 {[%emt 0:02:29]}
Rc1 {[%emt 0:02:06]} 27. Be2 {[%emt 0:03:42]} Ra1 28. Rb6 {[%emt 0:00:44]} Rxa2
{[%emt 0:07:38]} 29. Rxa6 {[%emt 0:01:05]} Rb2 {[%emt 0:00:33]} 30. Rxe6+ {
[%emt 0:02:57]} Kd7 {[%emt 0:00:11]} 31. Ra6 {[%emt 0:02:01]} Ne5 {[%emt 0:03:
03]} 32. Ke1 {[%emt 0:04:20]} Rxb3 {[%emt 0:00:59]} 33. Ra7+ {[%emt 0:01:11]}
Kc6 {[%emt 0:00:39]} 34. Rxg7 {[%emt 0:02:14]} Rb1+ {[%emt 0:02:27]} 35. Kd2 {
[%emt 0:00:59]} Rb2+ {[%emt 0:00:07]} 36. Kd1 {[%emt 0:00:54]} b4 {[%emt 0:03:
54]} 37. f4 {[%emt 0:01:23]} Nd7 {[%emt 0:00:03]} 38. Bf3+ {[%emt 0:03:17]} Kd6
{[%emt 0:00:05]} 39. Kc1 {[%emt 0:00:50]} Rb3 {[%emt 0:00:29]} 40. e4 {[%emt 0:
00:00]} Nb6 {[%emt 0:00:00]} 41. e5+ {[%emt 0:07:23]} Kc5 {[%emt 0:01:18]} 42.
Rc7+ {[%emt 0:03:02]} Kd4 {[%emt 0:00:22]} 43. e6 {[%emt 0:07:08]} Re3 {[%emt
0:07:50]} 44. e7 {[%emt 0:02:34]} Nc4 {[%emt 0:01:47]} 45. Bh5 {[%emt 0:03:24]}
1-0

[Event "ETCC Women 2013"]
[Site "Warsaw"]
[Date "2013.11.11"]
[Round "4"]
[White "Havlikova, Kristyna"]
[Black "Kaps, Darja"]
[Result "1-0"]
[ECO "B15"]
[WhiteElo "2237"]
[BlackElo "2221"]
[PlyCount "125"]
[EventDate "2013.??.??"]
[EventCountry "POL"]
[WhiteTeam "Tschechien"]
[BlackTeam "Slowenien"]
[WhiteTeamCountry "CZE"]
[BlackTeamCountry "SLO"]
[TimeControl "40/5400+30:1800+30"]

1. e4 {[%emt 0:00:00]} c6 {[%emt 0:00:00]} 2. d4 {[%emt 0:00:00]} d5 {[%emt 0:
00:00]} 3. Nc3 {[%emt 0:00:00]} dxe4 {[%emt 0:00:00]} 4. Nxe4 {[%emt 0:00:00]}
Nf6 {[%emt 0:00:06]} 5. Nxf6+ {[%emt 0:00:04]} exf6 {[%emt 0:00:07]} 6. c3 {
[%emt 0:00:09]} Bd6 {[%emt 0:00:58]} 7. Bd3 {[%emt 0:00:17]} O-O {[%emt 0:00:
51]} 8. Qc2 {[%emt 0:00:15]} Re8+ {[%emt 0:00:22]} 9. Ne2 {[%emt 0:00:11]} g6 {
[%emt 0:00:19]} 10. h4 {[%emt 0:00:44]} Be6 {[%emt 0:01:00]} 11. h5 {[%emt 0:
10:01]} f5 {[%emt 0:00:51]} 12. hxg6 {[%emt 0:08:09]} fxg6 {[%emt 0:00:31]} 13.
Bh6 {[%emt 0:00:07]} Qf6 {[%emt 0:00:37]} 14. O-O-O {[%emt 0:10:09]} Nd7 {
[%emt 0:00:32]} 15. Kb1 {[%emt 0:03:00]} b5 {[%emt 0:02:35]} 16. Nf4 {[%emt 0:
03:44]} Bf7 {[%emt 0:01:52]} 17. Nh3 {[%emt 0:01:52]} Bf8 {[%emt 0:06:21]} 18.
Qd2 {[%emt 0:09:37]} Bd5 {[%emt 0:14:58]} 19. f3 {[%emt 0:04:24]} Bxh6 {[%emt
0:00:31]} 20. Qxh6 {[%emt 0:00:07]} Re7 {[%emt 0:00:07]} 21. Nf4 {[%emt 0:09:
30]} Rb8 {[%emt 0:12:38]} 22. Nxd5 {[%emt 0:07:41]} cxd5 {[%emt 0:00:07]} 23.
Qf4 {[%emt 0:00:05]} Rb6 {[%emt 0:02:43]} 24. Rde1 {[%emt 0:04:42]} Nf8 {[%emt
0:02:50]} 25. Rxe7 {[%emt 0:11:20]} Qxe7 {[%emt 0:00:05]} 26. Qd2 {[%emt 0:00:
01]} Kg7 {[%emt 0:16:13]} 27. Re1 {[%emt 0:02:00]} Qd7 {[%emt 0:12:07]} 28. Qf4
{[%emt 0:02:56]} a6 {[%emt 0:03:42]} 29. Bc2 {[%emt 0:02:26]} Qd6 {[%emt 0:03:
18]} 30. Qe5+ {[%emt 0:03:07]} Qxe5 {[%emt 0:05:37]} 31. Rxe5 {[%emt 0:00:04]}
Rd6 {[%emt 0:02:37]} 32. Bb3 {[%emt 0:02:38]} Ne6 {[%emt 0:00:33]} 33. g3 {
[%emt 0:01:28]} f4 {[%emt 0:01:55]} 34. g4 {[%emt 0:00:14]} Kf6 {[%emt 0:01:43]
} 35. Bxd5 {[%emt 0:00:35]} Ng5 {[%emt 0:00:56]} 36. Be4 {[%emt 0:01:20]} Nxe4
{[%emt 0:03:27]} 37. Rxe4 {[%emt 0:00:10]} Kg5 {[%emt 0:00:03]} 38. a4 {[%emt
0:01:42]} bxa4 {[%emt 0:01:40]} 39. c4 {[%emt 0:01:06]} h5 {[%emt 0:00:20]} 40.
gxh5 {[%emt 0:00:00]} gxh5 {[%emt 0:00:00]} 41. c5 {[%emt 0:02:10]} Rc6 {[%emt
0:09:00]} 42. Kc2 {[%emt 0:03:18]} Kh4 {[%emt 0:06:11]} 43. Rxf4+ {[%emt 0:00:
20]} Kg3 {[%emt 0:00:04]} 44. Rf8 {[%emt 0:12:35]} Rh6 {[%emt 0:01:15]} 45. d5
{[%emt 0:00:07]} h4 {[%emt 0:02:32]} 46. c6 {[%emt 0:00:33]} h3 {[%emt 0:01:56]
} 47. c7 {[%emt 0:00:07]} h2 {[%emt 0:00:19]} 48. c8=Q {[%emt 0:00:08]} h1=Q {
[%emt 0:00:22]} 49. Qg4+ {[%emt 0:00:37]} Kf2 {[%emt 0:01:33]} 50. Qd4+ {[%emt
0:00:22]} Kf1 {[%emt 0:04:54]} 51. Qd1+ {[%emt 0:00:43]} Kf2 {[%emt 0:01:16]}
52. Qd2+ {[%emt 0:01:11]} Kg3 {[%emt 0:04:19]} 53. Rg8+ {[%emt 0:00:22]} Kxf3 {
[%emt 0:00:16]} 54. Rf8+ {[%emt 0:00:12]} Ke4 {[%emt 0:00:32]} 55. Qd3+ {[%emt
0:04:48]} Ke5 {[%emt 0:00:13]} 56. Rf5+ {[%emt 0:00:28]} Kd6 {[%emt 0:00:20]}
57. Qxa6+ {[%emt 0:00:09]} Ke7 {[%emt 0:01:32]} 58. Qb7+ {[%emt 0:00:11]} Kd6 {
[%emt 0:01:06]} 59. Qc6+ {[%emt 0:00:12]} Ke7 {[%emt 0:00:21]} 60. Qc7+ {[%emt
0:00:11]} Ke8 {[%emt 0:00:06]} 61. Re5+ {[%emt 0:00:14]} Kf8 {[%emt 0:00:06]}
62. Qe7+ {[%emt 0:00:09]} Kg8 {[%emt 0:00:15]} 63. Rg5+ {[%emt 0:00:05]} 1-0

[Event "ETCC Women 2013"]
[Site "Warsaw"]
[Date "2013.11.11"]
[Round "4"]
[White "Hoang, Thanh Trang"]
[Black "Botsari, Anna-Maria"]
[Result "1-0"]
[ECO "E39"]
[WhiteElo "2511"]
[BlackElo "2338"]
[PlyCount "89"]
[EventDate "2013.??.??"]
[EventCountry "POL"]
[WhiteTeam "Ungarn"]
[BlackTeam "Griechenland"]
[WhiteTeamCountry "HUN"]
[BlackTeamCountry "GRE"]
[TimeControl "40/5400+30:1800+30"]

1. d4 {[%emt 0:00:00]} Nf6 {[%emt 0:00:00]} 2. c4 {[%emt 0:00:14]} e6 {[%emt 0:
00:00]} 3. Nc3 {[%emt 0:00:34]} Bb4 {[%emt 0:00:00]} 4. Qc2 {[%emt 0:00:23]} c5
{[%emt 0:00:00]} 5. dxc5 {[%emt 0:00:41]} O-O {[%emt 0:00:16]} 6. a3 {[%emt 0:
00:46]} Bxc5 {[%emt 0:00:05]} 7. Nf3 {[%emt 0:01:27]} b6 {[%emt 0:00:15]} 8.
Bf4 {[%emt 0:00:39]} Bb7 {[%emt 0:00:56]} 9. Rd1 {[%emt 0:01:24]} Nh5 {[%emt 0:
05:21]} 10. Bc1 {[%emt 0:01:27]} Nf6 {[%emt 0:05:57]} 11. b4 {[%emt 0:01:22]}
Be7 {[%emt 0:00:04]} 12. e4 {[%emt 0:00:23]} Nc6 {[%emt 0:03:56]} 13. Be2 {
[%emt 0:01:57]} Rc8 {[%emt 0:06:45]} 14. O-O {[%emt 0:01:56]} Qc7 {[%emt 0:01:
21]} 15. h3 {[%emt 0:03:29]} Rfd8 {[%emt 0:14:26]} 16. Be3 {[%emt 0:05:58]} d6
{[%emt 0:01:59]} 17. Rd2 {[%emt 0:05:54]} Qb8 {[%emt 0:07:37]} 18. Rfd1 {[%emt
0:03:31]} h6 {[%emt 0:00:37]} 19. Qb1 {[%emt 0:05:15]} Ne8 {[%emt 0:06:47]} 20.
Nb5 {[%emt 0:04:11]} Ba8 {[%emt 0:06:18]} 21. Bf4 {[%emt 0:06:49]} a6 {[%emt 0:
02:24]} 22. Nc3 {[%emt 0:01:04]} Bf6 {[%emt 0:03:29]} 23. Na4 {[%emt 0:09:03]}
b5 {[%emt 0:04:55]} 24. Nc5 {[%emt 0:02:59]} bxc4 {[%emt 0:04:39]} 25. Bxc4 {
[%emt 0:01:03]} e5 {[%emt 0:06:27]} 26. Nxa6 {[%emt 0:02:12]} Qb7 {[%emt 0:02:
14]} 27. Bg3 {[%emt 0:08:05]} Nd4 {[%emt 0:05:41]} 28. Bf1 {[%emt 0:04:17]} Nb5
{[%emt 0:01:56]} 29. Qa1 {[%emt 0:02:18]} Nc3 {[%emt 0:01:01]} 30. Nc5 {[%emt
0:01:43]} Rxc5 {[%emt 0:04:50]} 31. bxc5 {[%emt 0:00:13]} Nxe4 {[%emt 0:00:04]}
32. Rb2 {[%emt 0:02:38]} Qa7 {[%emt 0:00:07]} 33. Bh2 {[%emt 0:02:46]} Nxc5 {
[%emt 0:00:31]} 34. Rb4 {[%emt 0:02:38]} e4 {[%emt 0:01:18]} 35. Nd4 {[%emt 0:
00:24]} Nc7 {[%emt 0:01:11]} 36. Qc1 {[%emt 0:02:25]} Nd5 {[%emt 0:00:20]} 37.
Nb5 {[%emt 0:02:59]} Qa5 {[%emt 0:01:31]} 38. Rb1 {[%emt 0:02:31]} Bg5 {[%emt
0:02:03]} 39. Qc4 {[%emt 0:01:10]} Nf4 {[%emt 0:01:14]} 40. Nxd6 {[%emt 0:00:
00]} Nfe6 {[%emt 0:00:00]} 41. Qb4 {[%emt 0:06:44]} Qa7 {[%emt 0:07:23]} 42.
Nb5 {[%emt 0:01:25]} Qb6 {[%emt 0:02:56]} 43. Nc7 {[%emt 0:03:23]} Qa7 {[%emt
0:03:03]} 44. Rxd8+ {[%emt 0:01:53]} Bxd8 {[%emt 0:00:14]} 45. Qb8 {[%emt 0:02:
13]} 1-0

[Event "ETCC Women 2013"]
[Site "Warsaw"]
[Date "2013.11.11"]
[Round "4"]
[White "Ivanova, Simoneta"]
[Black "Schnegg, Anna-Lena"]
[Result "1-0"]
[ECO "D94"]
[WhiteElo "2046"]
[BlackElo "2076"]
[PlyCount "93"]
[EventDate "2013.??.??"]
[EventCountry "POL"]
[WhiteTeam "Bulgarien"]
[BlackTeam "Österreich"]
[WhiteTeamCountry "BUL"]
[BlackTeamCountry "AUT"]
[TimeControl "40/5400+30:1800+30"]

1. d4 {[%emt 0:00:00]} Nf6 {[%emt 0:00:00]} 2. c4 {[%emt 0:00:00]} g6 {[%emt 0:
00:00]} 3. Nc3 {[%emt 0:00:00]} d5 {[%emt 0:00:00]} 4. Nf3 {[%emt 0:00:10]} Bg7
{[%emt 0:00:17]} 5. e3 {[%emt 0:00:12]} O-O {[%emt 0:01:28]} 6. cxd5 {[%emt 0:
00:16]} Nxd5 {[%emt 0:00:22]} 7. Bc4 {[%emt 0:00:17]} Nb6 {[%emt 0:07:18]} 8.
Bb3 {[%emt 0:02:56]} Nc6 {[%emt 0:04:31]} 9. O-O {[%emt 0:01:26]} e5 {[%emt 0:
02:48]} 10. d5 {[%emt 0:01:03]} Na5 {[%emt 0:09:22]} 11. e4 {[%emt 0:01:25]}
Nxb3 {[%emt 0:03:54]} 12. axb3 {[%emt 0:00:38]} c6 {[%emt 0:07:30]} 13. Bg5 {
[%emt 0:14:40]} f6 {[%emt 0:06:20]} 14. Be3 {[%emt 0:00:57]} cxd5 {[%emt 0:05:
18]} 15. exd5 {[%emt 0:04:21]} a6 {[%emt 0:08:25]} 16. Qd2 {[%emt 0:10:07]} Bg4
{[%emt 0:01:50]} 17. Ne1 {[%emt 0:05:16]} Rf7 {[%emt 0:09:08]} 18. f3 {[%emt 0:
05:03]} Bf5 {[%emt 0:02:50]} 19. g4 {[%emt 0:02:18]} Bc8 {[%emt 0:08:01]} 20.
Rd1 {[%emt 0:01:13]} f5 {[%emt 0:02:39]} 21. h3 {[%emt 0:07:15]} Nd7 {[%emt 0:
12:04]} 22. Nd3 {[%emt 0:04:10]} b5 {[%emt 0:01:35]} 23. Nc5 {[%emt 0:07:36]}
Nxc5 {[%emt 0:00:26]} 24. Bxc5 {[%emt 0:00:02]} Bb7 {[%emt 0:01:41]} 25. d6 {
[%emt 0:05:21]} Qh4 {[%emt 0:02:25]} 26. Qg2 {[%emt 0:02:14]} fxg4 {[%emt 0:00:
48]} 27. hxg4 {[%emt 0:04:08]} Raf8 {[%emt 0:01:24]} 28. Nd5 {[%emt 0:05:20]}
e4 {[%emt 0:00:54]} 29. fxe4 {[%emt 0:01:43]} Bxd5 {[%emt 0:00:32]} 30. exd5 {
[%emt 0:00:11]} Rf4 {[%emt 0:00:32]} 31. Rxf4 {[%emt 0:06:26]} Rxf4 {[%emt 0:
00:01]} 32. d7 {[%emt 0:02:46]} Qd8 {[%emt 0:01:00]} 33. Qe2 {[%emt 0:05:23]}
Qxd7 {[%emt 0:00:33]} 34. Qe6+ {[%emt 0:00:26]} Qxe6 {[%emt 0:00:21]} 35. dxe6
{[%emt 0:00:03]} Rxg4+ {[%emt 0:00:09]} 36. Kf2 {[%emt 0:00:29]} Bf6 {[%emt 0:
00:48]} 37. Kf3 {[%emt 0:00:27]} Rg5 {[%emt 0:00:25]} 38. b4 {[%emt 0:01:20]}
Re5 {[%emt 0:00:40]} 39. Rd6 {[%emt 0:00:31]} a5 {[%emt 0:00:36]} 40. Rb6 {
[%emt 0:00:00]} h5 {[%emt 0:00:00]} 41. e7 {[%emt 0:20:35]} Bxe7 {[%emt 0:16:
18]} 42. Bxe7 {[%emt 0:00:33]} Rxe7 {[%emt 0:00:22]} 43. bxa5 {[%emt 0:01:13]}
Kg7 {[%emt 0:06:01]} 44. a6 {[%emt 0:01:22]} Kh6 {[%emt 0:00:29]} 45. Rxb5 {
[%emt 0:01:05]} h4 {[%emt 0:03:55]} 46. Ra5 {[%emt 0:01:25]} Ra7 {[%emt 0:03:
03]} 47. b4 {[%emt 0:00:54]} 1-0

[Event "ETCC Women 2013"]
[Site "Warsaw"]
[Date "2013.11.11"]
[Round "4"]
[White "Jelica, Mara"]
[Black "Mamedjarova, Zeinab"]
[Result "0-1"]
[ECO "C41"]
[WhiteElo "2252"]
[BlackElo "2236"]
[PlyCount "80"]
[EventDate "2013.??.??"]
[EventCountry "POL"]
[WhiteTeam "Kroatien"]
[BlackTeam "Aserbeidschan"]
[WhiteTeamCountry "CRO"]
[BlackTeamCountry "AZE"]
[TimeControl "40/5400+30:1800+30"]

1. e4 {[%emt 0:00:00]} e5 {[%emt 0:00:00]} 2. Nf3 {[%emt 0:00:00]} d6 {[%emt 0:
00:00]} 3. d4 {[%emt 0:00:00]} exd4 {[%emt 0:00:00]} 4. Qxd4 {[%emt 0:00:00]}
Nc6 {[%emt 0:00:33]} 5. Bb5 {[%emt 0:00:00]} Bd7 {[%emt 0:00:06]} 6. Bxc6 {
[%emt 0:00:06]} Bxc6 {[%emt 0:00:30]} 7. Bg5 {[%emt 0:00:05]} f6 {[%emt 0:08:
59]} 8. Be3 {[%emt 0:00:19]} Ne7 {[%emt 0:03:22]} 9. Nc3 {[%emt 0:02:21]} Qd7 {
[%emt 0:04:25]} 10. O-O-O {[%emt 0:02:46]} b6 {[%emt 0:02:47]} 11. Qc4 {[%emt
0:06:40]} O-O-O {[%emt 0:05:44]} 12. Nd4 {[%emt 0:03:27]} Re8 {[%emt 0:02:26]}
13. Qa6+ {[%emt 0:03:52]} Kb8 {[%emt 0:00:15]} 14. Nxc6+ {[%emt 0:06:41]} Nxc6
{[%emt 0:04:47]} 15. Qa4 {[%emt 0:06:53]} Kb7 {[%emt 0:04:58]} 16. f4 {[%emt 0:
09:26]} g6 {[%emt 0:02:41]} 17. Rhe1 {[%emt 0:03:33]} Bg7 {[%emt 0:01:56]} 18.
Nd5 {[%emt 0:02:21]} f5 {[%emt 0:04:49]} 19. exf5 {[%emt 0:05:39]} Qxf5 {[%emt
0:02:20]} 20. Nb4 {[%emt 0:03:58]} Nxb4 {[%emt 0:04:45]} 21. Qxb4 {[%emt 0:00:
08]} Re4 {[%emt 0:03:43]} 22. Qd2 {[%emt 0:02:16]} Rhe8 {[%emt 0:01:27]} 23. g3
{[%emt 0:02:23]} Qe6 {[%emt 0:00:56]} 24. Bf2 {[%emt 0:07:07]} Qxa2 {[%emt 0:
02:54]} 25. c3 {[%emt 0:00:04]} Qa1+ {[%emt 0:08:36]} 26. Kc2 {[%emt 0:00:06]}
Qa4+ {[%emt 0:00:10]} 27. Kb1 {[%emt 0:00:34]} Qc4 {[%emt 0:01:18]} 28. Rxe4 {
[%emt 0:05:31]} Rxe4 {[%emt 0:00:36]} 29. Re1 {[%emt 0:00:18]} a5 {[%emt 0:02:
03]} 30. Rxe4 {[%emt 0:03:59]} Qxe4+ {[%emt 0:00:08]} 31. Ka2 {[%emt 0:00:55]}
a4 {[%emt 0:01:38]} 32. Be1 {[%emt 0:01:31]} d5 {[%emt 0:02:01]} 33. Bf2 {
[%emt 0:00:11]} Qc4+ {[%emt 0:00:59]} 34. Kb1 {[%emt 0:00:32]} a3 {[%emt 0:00:
35]} 35. Be1 {[%emt 0:03:26]} Qb3 {[%emt 0:01:19]} 36. Bf2 {[%emt 0:01:35]}
axb2 {[%emt 0:03:48]} 37. Bd4 {[%emt 0:00:17]} Qa3 {[%emt 0:01:32]} 38. Qxb2 {
[%emt 0:00:05]} Qxb2+ {[%emt 0:00:05]} 39. Kxb2 {[%emt 0:00:02]} Bxd4 {[%emt 0:
00:04]} 40. cxd4 {[%emt 0:00:00]} Kc6 {[%emt 0:00:00]} 0-1